lending/lending_fUSD_20240120
["ID","MTS","AMOUNT","RATE_DAILY","PERIOD"]
[312302702,1705766529961,-2012.37456612,0.00043774,30]
[312302703,1705766529983,-1106.31971288,0.0004378,30]
[312302704,1705766530005,-2012.37456612,0.00043782,30]
[312302705,1705766530032,-487.48933182,0.00043782,30]
[312302706,1705766530055,-652.75235381,0.00043784,30]
[312302707,1705766530077,-200.0,0.00043787,30]
[312302708,1705766530100,-1106.31971288,0.00043788,30]
[312302709,1705766530123,-2012.37456612,0.00043788,30]
[312302710,1705766530145,-200.0,0.0004379,30]
[312302711,1705766530168,-1106.31971288,0.00043792,30]
[312302712,1705766530189,-487.48933182,0.00043793,30]
[312302713,1705766530215,-652.75235381,0.00043799,30]
[312302714,1705766530240,-500.0,0.00043835,40]
[312302715,1705766530262,-500.0,0.00043835,40]
[312302716,1705766530284,-515.06253708,0.00043835,40]
[312302717,1705766530307,-500.0,0.00043835,40]
[312302718,1705766530329,-500.0,0.00043835,40]
[312302719,1705766530351,-500.0,0.00043835,40]
[312302720,1705766530374,-500.0,0.00043835,40]
[312302721,1705766530399,-500.0,0.00043835,40]
[312302722,1705766530421,-503.81,0.00043835,40]
[312302723,1705766530443,-500.0,0.00043835,40]
[312302724,1705766530465,-541.13,0.00043835,40]
[312302725,1705766530487,-500.0,0.00043835,40]
[312302726,1705766530510,-500.0,0.00043835,40]
[312302727,1705766530531,-500.0,0.00043835,40]
[312302728,1705766530553,-500.0,0.00043835,40]
[312302729,1705766530575,-172.23689384,0.00043835,40]
[312302730,1705766530597,-500.0,0.00043835,40]
[312302731,1705766530619,-500.0,0.00043835,40]
[312302732,1705766530643,-500.0,0.00043835,40]
[312302733,1705766530664,-500.0,0.00043835,40]
[312302734,1705766530688,-500.0,0.00043835,40]
[312302735,1705766530709,-500.0,0.00043835,40]
[312302736,1705766530731,-552.74515669,0.00043835,40]
[312302737,1705766530758,-500.0,0.00043835,40]
[312302738,1705766530783,-505.81920632,0.00043835,40]
[312302739,1705766530804,-336.24739412,0.00043835,40]
[312302740,1705766530827,-500.0,0.00043835,40]
[312302741,1705766530850,-559.23613493,0.00043835,40]
[312302742,1705766530876,-500.0,0.00043835,40]
[312302743,1705766530901,-615.35,0.00043835,40]
[312302744,1705766530924,-500.0,0.00043835,40]
[312302745,1705766530946,-501.56282691,0.00043835,40]
[312302746,1705766530968,-500.0,0.00043835,40]
[312302747,1705766530991,-500.0,0.00043835,40]
[312302748,1705766531014,-1000.0,0.00043835,40]
[312302749,1705766531036,-500.0,0.00043835,40]
[312302750,1705766531059,-500.0,0.00043835,40]
[312302751,1705766531081,-500.0,0.00043835,40]
[312302752,1705766531103,-1000.0,0.00043835,40]
[312302753,1705766531125,-500.0,0.00043835,40]
[312302754,1705766531149,-500.0,0.00043835,40]
[312302755,1705766531171,-500.0,0.00043835,40]
[312302756,1705766531193,-500.0,0.00043835,40]
[312302757,1705766531215,-500.0,0.00043835,30]
[312302758,1705766531237,-500.0,0.00043835,40]
[312302759,1705766531260,-500.0,0.00043835,40]
[312302760,1705766531281,-457.38965376,0.00043835,40]
[312302761,1705766531304,-500.0,0.00043835,40]
[312302762,1705766531327,-500.0,0.00043835,40]
[312302763,1705766531349,-313.70479308,0.00043835,40]
[312302764,1705766531371,-200.56444872,0.00043835,40]
[312302765,1705766531395,-500.0,0.00043835,40]
[312302766,1705766531417,-500.0,0.00043835,40]
[312302767,1705766531439,-500.0,0.00043835,40]
[312302768,1705766531463,-452.55999845,0.00043835,40]
[312302769,1705766531485,-504.49130464,0.00043835,40]
[312302770,1705766531507,-533.47642022,0.00043835,40]
[312302771,1705766531530,-500.0,0.00043835,40]
[312302772,1705766531553,-350.78,0.00043835,40]
[312302773,1705766531576,-500.0,0.00043835,40]
[312302774,1705766531599,-500.0,0.00043835,40]
[312302775,1705766531621,-500.0,0.00043835,40]
[312302776,1705766531644,-376.94312207,0.00043835,40]
[312302777,1705766531667,-518.68358961,0.00043835,40]
[312302778,1705766531690,-500.0,0.00043835,40]
[312302779,1705766531712,-500.35124658,0.00043835,40]
[312302780,1705766531735,-500.0,0.00043835,40]
[312302781,1705766531757,-500.0,0.00043835,40]
[312302782,1705766531783,-500.0,0.00043835,40]
[312302783,1705766531807,-501.80650377,0.00043835,40]
[312302784,1705766531830,-500.0,0.00043835,40]
[312302785,1705766531852,-401.12009443,0.00043835,40]
[312302786,1705766531876,-519.81440223,0.00043835,40]
[312302787,1705766532038,-500.0,0.00043835,40]
[312302788,1705766532062,-500.0,0.00043835,40]
[312302789,1705766532084,-500.0,0.00043835,40]
[312302790,1705766532107,-500.0,0.00043835,40]
[312302791,1705766532129,-500.0,0.00043835,40]
[312302792,1705766532153,-500.0,0.00043835,40]
[312302793,1705766532174,-510.0,0.00043835,120]
[312302794,1705766532197,-500.0,0.00043835,40]
[312302795,1705766532219,-500.0,0.00043835,40]
[312302796,1705766532241,-500.0,0.00043835,40]
[312302797,1705766532262,-500.0,0.00043835,40]
[312302798,1705766532283,-513.76393149,0.00043835,40]
[312302799,1705766532305,-500.0,0.00043835,40]
[312302800,1705766532326,-500.0,0.00043835,40]
[312302801,1705766532348,-500.0,0.00043835,40]
[312302802,1705766532369,-10000.0,0.00043835,40]
[312302803,1705766532391,-500.0,0.00043835,40]
[312302804,1705766532416,-500.0,0.00043835,40]
[312302805,1705766532438,-500.0,0.00043835,30]
[312302806,1705766532459,-9780.86362762,0.00043835,40]
[312302807,1705766532481,-500.0,0.00043835,40]
[312302808,1705766532503,-500.0,0.00043835,40]
[312302809,1705766532525,-500.0,0.00043835,40]
[312302810,1705766532547,-250.0,0.00043835,40]
[312302811,1705766532568,-500.0,0.00043835,40]
[312302812,1705766532589,-500.0,0.00043835,40]
[312302813,1705766532613,-500.0,0.00043835,40]
[312302814,1705766532635,-500.0,0.00043835,40]
[312302815,1705766532658,-500.0,0.00043835,40]
[312302816,1705766532680,-500.0,0.00043835,40]
[312302817,1705766532702,-500.0,0.00043835,40]
[312302818,1705766532723,-500.0,0.00043835,40]
[312302819,1705766532745,-500.0,0.00043835,40]
[312302820,1705766532768,-500.0,0.00043835,40]
[312302821,1705766532794,-500.0,0.00043835,40]
[312302822,1705766532816,-500.0,0.00043835,40]
[312302823,1705766532837,-500.0,0.00043835,40]
[312302824,1705766532859,-500.0,0.00043835,40]
[312302825,1705766532881,-500.0,0.00043835,40]
[312302826,1705766532903,-500.0,0.00043835,40]
[312302827,1705766532925,-613.82,0.00043835,40]
[312302828,1705766532946,-500.0,0.00043835,40]
[312302829,1705766532968,-500.0,0.00043835,40]
[312302830,1705766532990,-500.0,0.00043835,40]
[312302831,1705766533012,-500.0,0.00043835,40]
[312302832,1705766533033,-500.0,0.00043835,40]
[312302833,1705766533054,-500.0,0.00043835,40]
[312302834,1705766533081,-304.15086275,0.00043835,40]
[312302835,1705766533102,-500.0,0.00043835,40]
[312302836,1705766533123,-500.0,0.00043835,40]
[312302837,1705766533147,-500.0,0.00043835,40]
[312302838,1705766533168,-500.0,0.00043835,40]
[312302839,1705766533189,-526.04492695,0.00043835,40]
[312302840,1705766533211,-500.0,0.00043835,40]
[312302841,1705766533232,-500.0,0.00043835,40]
[312302842,1705766533254,-500.0,0.00043835,40]
[312302843,1705766533276,-500.0,0.00043835,40]
[312302844,1705766533297,-649.39388171,0.00043835,40]
[312302845,1705766533319,-500.0,0.00043835,40]
[312302846,1705766533341,-500.0,0.00043835,40]
[312302847,1705766533362,-500.0,0.00043835,40]
[312302848,1705766533383,-500.0,0.00043835,40]
[312302849,1705766533407,-500.0,0.00043835,40]
[312302850,1705766533429,-500.0,0.00043835,40]
[312302851,1705766533451,-500.0,0.00043835,40]
[312302852,1705766533474,-528.81219986,0.00043835,40]
[312302853,1705766533495,-500.0,0.00043835,40]
[312302854,1705766533517,-599.99515871,0.00043835,40]
[312302855,1705766533539,-500.0,0.00043835,40]
[312302856,1705766533562,-500.0,0.00043835,40]
[312302857,1705766533584,-500.0,0.00043835,40]
[312302858,1705766533607,-500.0,0.00043835,40]
[312302859,1705766533630,-500.0,0.00043835,40]
[312302860,1705766533652,-532.69450996,0.00043835,40]
[312302861,1705766533674,-500.0,0.00043835,40]
[312302862,1705766533696,-373.01052306,0.00043835,40]
[312302863,1705766533717,-500.0,0.00043835,40]
[312302864,1705766533741,-437.38217284,0.00043835,40]
[312302865,1705766533763,-500.0,0.00043835,40]
[312302866,1705766533786,-500.0,0.00043835,30]
[312302867,1705766533807,-500.0,0.00043835,40]
[312302868,1705766533830,-500.0,0.00043835,40]
[312302869,1705766533852,-500.0,0.00043835,40]
[312302870,1705766533874,-500.0,0.00043835,40]
[312302871,1705766533895,-648.29,0.00043835,40]
[312302872,1705766533917,-504.55351672,0.00043835,40]
[312302873,1705766533939,-500.0,0.00043835,40]
[312302874,1705766533962,-500.0,0.00043835,30]
[312302875,1705766533985,-500.0,0.00043835,40]
[312302876,1705766534007,-500.0,0.00043835,40]
[312302877,1705766534029,-500.0,0.00043835,40]
[312302878,1705766534050,-500.0,0.00043835,40]
[312302879,1705766534072,-500.0,0.00043835,40]
[312302880,1705766534093,-500.0,0.00043835,40]
[312302881,1705766534115,-500.0,0.00043835,40]
[312302882,1705766534136,-500.0,0.00043835,40]
[312302883,1705766534160,-500.0,0.00043835,40]
[312302884,1705766534182,-500.0,0.00043835,40]
[312302885,1705766534204,-2103.40885493,0.00043835,40]
[312302886,1705766534226,-500.0,0.00043835,40]
[312302887,1705766534248,-500.0,0.00043835,40]
[312302888,1705766534270,-500.0,0.00043835,40]
[312302889,1705766534295,-447.69715246,0.00043835,40]
[312302890,1705766534317,-500.0,0.00043835,40]
[312302891,1705766534340,-2646.67,0.00043835,40]
[312302892,1705766534361,-518.57127028,0.00043835,40]
[312302893,1705766534525,-500.0,0.00043835,40]
[312302894,1705766534550,-547.82,0.00043835,40]
[312302895,1705766534574,-500.0,0.00043835,40]
[312302896,1705766534600,-500.0,0.00043835,40]
[312302897,1705766534623,-500.0,0.00043835,40]
[312302898,1705766534648,-500.0,0.00043835,40]
[312302899,1705766534672,-500.0,0.00043835,40]
[312302900,1705766534696,-500.0,0.00043835,40]
[312302901,1705766534719,-500.0,0.00043835,40]
[312302902,1705766534743,-500.0,0.00043835,40]
[312302903,1705766534767,-500.0,0.00043835,40]
[312302904,1705766534791,-500.0,0.00043835,40]
[312302905,1705766534814,-500.0,0.00043835,40]
[312302906,1705766534838,-500.0,0.00043835,40]
[312302907,1705766534861,-526.5051259,0.00043835,40]
[312302908,1705766534884,-500.0,0.00043835,40]
[312302909,1705766534908,-500.0,0.00043835,40]
[312302910,1705766534931,-500.0,0.00043835,40]
[312302911,1705766534954,-500.0,0.00043835,40]
[312302912,1705766534977,-450.98488533,0.00043835,40]
[312302913,1705766534999,-500.0,0.00043835,40]
[312302914,1705766535022,-500.0,0.00043835,40]
[312302915,1705766535044,-500.0,0.00043835,40]
[312302916,1705766535066,-500.0,0.00043835,40]
[312302917,1705766535087,-500.0,0.00043835,40]
[312302918,1705766535109,-500.0,0.00043835,40]
[312302919,1705766535134,-533.23312313,0.00043835,40]
[312302920,1705766535158,-500.0,0.00043835,40]
[312302921,1705766535181,-500.0,0.00043835,40]
[312302922,1705766535202,-547.2372112,0.00043835,40]
[312302923,1705766535224,-1477.64,0.00043835,40]
[312302924,1705766535246,-500.0,0.00043835,40]
[312302925,1705766535268,-500.0,0.00043835,40]
[312302926,1705766535290,-418.12527954,0.00043835,40]
[312302927,1705766535313,-500.0,0.00043835,40]
[312302928,1705766535335,-500.0,0.00043835,40]
[312302929,1705766535358,-500.0,0.00043835,40]
[312302930,1705766535381,-400.0,0.00043835,40]
[312302931,1705766535404,-332.83127439,0.00043835,40]
[312302932,1705766535425,-433.13663955,0.00043835,40]
[312302933,1705766535448,-565.7,0.00043835,40]
[312302934,1705766535471,-500.0,0.00043835,40]
[312302935,1705766535493,-500.0,0.00043835,40]
[312302936,1705766535515,-490.39175294,0.00043835,40]
[312302937,1705766535538,-4392.19,0.00043835,40]
[312302938,1705766535560,-500.0,0.00043835,40]
[312302939,1705766535582,-500.0,0.00043835,40]
[312302940,1705766535605,-187.3822805,0.00043835,40]
[312302941,1705766535628,-500.0,0.00043835,40]
[312302942,1705766535651,-500.0,0.00043835,40]
[312302943,1705766535672,-438.03258037,0.00043835,40]
[312302944,1705766535694,-500.0,0.00043835,40]
[312302945,1705766535716,-227.11849363,0.00043835,40]
[312302946,1705766535739,-1263.12,0.00043835,40]
[312302947,1705766535762,-500.0,0.00043835,40]
[312302948,1705766535787,-1087.88,0.00043835,40]
[312302949,1705766535810,-500.0,0.00043835,40]
[312302950,1705766535833,-423.08969842,0.00043835,40]
[312302951,1705766535858,-536.33,0.00043835,40]
[312302952,1705766535882,-500.0,0.00043835,40]
[312302953,1705766535905,-2773.99,0.00043835,40]
[312302954,1705766535928,-648.43680122,0.00043835,40]
[312302955,1705766535950,-500.0,0.00043835,40]
[312302956,1705766535972,-500.0,0.00043835,40]
[312302957,1705766535994,-500.0,0.00043835,40]
[312302958,1705766536016,-500.0,0.00043835,40]
[312302959,1705766536038,-583.83687079,0.00043835,40]
[312302960,1705766536059,-500.0,0.00043835,40]
[312302961,1705766536083,-500.0,0.00043835,40]
[312302962,1705766536106,-431.32982371,0.00043835,40]
[312302963,1705766536130,-500.0,0.00043835,40]
[312302964,1705766536152,-500.0,0.00043835,40]
[312302965,1705766536174,-500.0,0.00043835,40]
[312302966,1705766536196,-500.0,0.00043835,40]
[312302967,1705766536218,-500.0,0.00043835,40]
[312302968,1705766536240,-500.0,0.00043835,40]
[312302969,1705766536262,-500.0,0.00043835,40]
[312302970,1705766536285,-500.0,0.00043835,40]
[312302971,1705766536307,-500.0,0.00043835,40]
[312302972,1705766536330,-552.94,0.00043835,40]
[312302973,1705766536353,-240.20197801,0.00043835,30]
[312302974,1705766536375,-500.0,0.00043835,40]
[312302975,1705766536398,-636.66,0.00043835,40]
[312302976,1705766536422,-500.0,0.00043835,40]
[312302977,1705766536449,-500.0,0.00043835,40]
[312302978,1705766536472,-629.45896419,0.00043835,40]
[312302979,1705766536495,-500.0,0.00043835,40]
[312302980,1705766536518,-500.0,0.00043835,40]
[312302981,1705766536541,-500.0,0.00043835,40]
[312302982,1705766536563,-500.0,0.00043835,40]
[312302983,1705766536586,-500.0,0.00043835,40]
[312302984,1705766536608,-500.0,0.00043835,40]
[312302985,1705766536631,-786.02,0.00043835,40]
[312302986,1705766536654,-500.0,0.00043835,40]
[312302987,1705766536676,-500.0,0.00043835,40]
[312302988,1705766536698,-500.0,0.00043835,40]
[312302989,1705766536719,-500.0,0.00043835,40]
[312302990,1705766536742,-1837.12,0.00043835,40]
[312302991,1705766536764,-582.10181318,0.00043835,40]
[312302992,1705766536788,-500.0,0.00043835,40]
[312302993,1705766536810,-500.0,0.00043835,40]
[312302994,1705766536831,-500.0,0.00043835,40]
[312302995,1705766536853,-500.0,0.00043835,40]
[312302996,1705766536878,-500.0,0.00043835,40]
[312302997,1705766536901,-155.59249893,0.00043835,40]
[312302998,1705766537057,-500.0,0.00043835,40]
[312302999,1705766537083,-500.0,0.00043835,40]
[312303000,1705766537107,-1753.47,0.00043835,40]
[312303001,1705766537129,-500.0,0.00043835,40]
[312303002,1705766537151,-500.0,0.00043835,40]
[312303003,1705766537175,-500.0,0.00043835,40]
[312303004,1705766537197,-287.40511473,0.00043835,40]
[312303005,1705766537223,-3598.64265956,0.00043835,40]
[312303006,1705766537247,-500.0,0.00043835,40]
[312303007,1705766537270,-1007.56,0.00043835,30]
[312303008,1705766537293,-500.0,0.00043835,40]
[312303009,1705766537316,-500.0,0.00043835,40]
[312303010,1705766537338,-270.59,0.00043835,40]
[312303011,1705766537362,-500.0,0.00043835,40]
[312303012,1705766537384,-449.42854464,0.00043835,40]
[312303013,1705766537407,-500.0,0.00043835,40]
[312303014,1705766537430,-495.05,0.00043835,40]
[312303015,1705766537453,-500.0,0.00043835,40]
[312303016,1705766537478,-500.0,0.00043835,40]
[312303017,1705766537500,-500.0,0.00043835,40]
[312303018,1705766537524,-500.0,0.00043835,40]
[312303019,1705766537546,-500.0,0.00043835,40]
[312303020,1705766537569,-289.78,0.00043835,40]
[312303021,1705766537593,-500.0,0.00043835,40]
[312303022,1705766537619,-500.0,0.00043835,40]
[312303023,1705766537646,-515.4143073,0.00043835,40]
[312303024,1705766537669,-500.0,0.00043835,40]
[312303025,1705766537692,-187.99,0.00043835,40]
[312303026,1705766537715,-869.49,0.00043835,40]
[312303027,1705766537739,-500.0,0.00043835,40]
[312303028,1705766537762,-500.0,0.00043835,40]
[312303029,1705766537790,-500.0,0.00043835,40]
[312303030,1705766537813,-518.52,0.00043835,40]
[312303031,1705766537837,-286.83411696,0.00043835,40]
[312303032,1705766537860,-500.0,0.00043835,40]
[312303033,1705766537883,-169.62611665,0.00043835,40]
[312303034,1705766537907,-500.0,0.00043835,40]
[312303035,1705766537930,-552.05,0.00043835,40]
[312303036,1705766537954,-500.0,0.00043835,40]
[312303037,1705766537977,-500.0,0.00043835,40]
[312303038,1705766537999,-500.0,0.00043835,40]
[312303039,1705766538022,-500.0,0.00043835,40]
[312303040,1705766538044,-500.0,0.00043835,40]
[312303041,1705766538067,-734.76,0.00043835,40]
[312303042,1705766538089,-500.0,0.00043835,40]
[312303043,1705766538112,-500.0,0.00043835,40]
[312303044,1705766538134,-535.85,0.00043835,40]
[312303045,1705766538159,-508.81,0.00043835,40]
[312303046,1705766538182,-500.0,0.00043835,40]
[312303047,1705766538205,-500.0,0.00043835,40]
[312303048,1705766538228,-500.0,0.00043835,40]
[312303049,1705766538251,-2536.89,0.00043835,40]
[312303050,1705766538274,-500.0,0.00043835,40]
[312303051,1705766538297,-361.03266964,0.00043835,40]
[312303052,1705766538320,-500.0,0.00043835,40]
[312303053,1705766538344,-500.0,0.00043835,40]
[312303054,1705766538366,-500.0,0.00043835,40]
[312303055,1705766538390,-500.0,0.00043835,40]
[312303056,1705766538414,-287.89,0.00043835,40]
[312303057,1705766538437,-500.0,0.00043835,40]
[312303058,1705766538462,-500.0,0.00043835,40]
[312303059,1705766538486,-500.0,0.00043835,40]
[312303060,1705766538510,-500.0,0.00043835,40]
[312303061,1705766538538,-500.0,0.00043835,40]
[312303062,1705766538564,-581.13,0.00043835,40]
[312303063,1705766538588,-500.0,0.00043835,40]
[312303064,1705766538613,-574.9,0.00043835,40]
[312303065,1705766538638,-500.0,0.00043835,40]
[312303066,1705766538663,-392.24591067,0.00043835,40]
[312303067,1705766538687,-601.79,0.00043835,40]
[312303068,1705766538712,-500.0,0.00043835,40]
[312303069,1705766538736,-500.0,0.00043835,40]
[312303070,1705766538761,-500.0,0.00043835,40]
[312303071,1705766538786,-500.0,0.00043835,40]
[312303072,1705766538808,-500.0,0.00043835,40]
[312303073,1705766538833,-749.18,0.00043835,40]
[312303074,1705766538856,-500.0,0.00043835,40]
[312303075,1705766538884,-500.0,0.00043835,40]
[312303076,1705766538908,-190.95480637,0.00043835,40]
[312303077,1705766538931,-500.0,0.00043835,40]
[312303078,1705766538956,-500.0,0.00043835,40]
[312303079,1705766538979,-500.0,0.00043835,40]
[312303080,1705766539002,-645.65,0.00043835,40]
[312303081,1705766539027,-673.47,0.00043835,40]
[312303082,1705766539051,-500.0,0.00043835,40]
[312303083,1705766539075,-500.0,0.00043835,40]
[312303084,1705766539099,-500.0,0.00043835,40]
[312303085,1705766539122,-619.43,0.00043835,40]
[312303086,1705766539147,-500.0,0.00043835,40]
[312303087,1705766539170,-500.0,0.00043835,40]
[312303088,1705766539194,-500.0,0.00043835,40]
[312303089,1705766539217,-500.0,0.00043835,40]
[312303090,1705766539242,-1014.7,0.00043835,40]
[312303091,1705766539265,-731.43,0.00043835,40]
[312303092,1705766539288,-500.0,0.00043835,40]
[312303093,1705766539312,-824.01,0.00043835,40]
[312303094,1705766539335,-500.0,0.00043835,40]
[312303095,1705766539358,-500.0,0.0004389,30]
[312303096,1705766539381,-500.0,0.0004389,30]
[312303097,1705766539404,-602.81584595,0.000439,30]
[312303098,1705766539426,-350.0,0.00043945,120]
[312303099,1705766539448,-207.3882402,0.0004395,120]
[312303100,1705766539472,-500.0,0.00043987,37]
[312303101,1705766539496,-500.0,0.00043987,36]
[312303102,1705766539520,-500.0,0.00043987,43]
[312303103,1705766539685,-150.0,0.00043995,30]
[312303104,1705766539710,-3122.16589102,0.00043995,30]
[312303105,1705766539734,-33341.16352351,0.00044,33]
[312303106,1705766539758,-4860.85936542,0.00044,30]
[312303107,1705766539784,-300.0,0.00044,45]
[312303108,1705766539811,-531.27494958,0.00044,120]
[312303109,1705766539838,-1843.13798772,0.00044,30]
[312303110,1705766539862,-1133.05669912,0.00044,30]
[312303111,1705766539886,-152.75273,0.00044,30]
[312303112,1705766539910,-418.61554586,0.00044,60]
[312303113,1705766539933,-152.99417292,0.00044,60]
[312303114,1705766539957,-593.25543264,0.00044,30]
[312303115,1705766539980,-349.42894162,0.00044,30]
[312303116,1705766540003,-637.7846493,0.00044,30]
[312303117,1705766540028,-455000.0,0.00044,50]
[312303118,1705766540053,-2002.91,0.00044,30]
[312303119,1705766540076,-998772.35823472,0.00044,120]
[312303120,1705766540101,-200000.0,0.00044,30]
[312303121,1705766540127,-200000.0,0.00044,40]
[312303122,1705766540160,-500000.0,0.00044,120]
[312303123,1705766540189,-349.20224953,0.00044,30]
[312303124,1705766540216,-227.54288268,0.00044,30]
[312303125,1705766540243,-198.53501431,0.00044,30]
[312303126,1705766540273,-264.03921198,0.00044,30]
[312303127,1705766540301,-7124.18955127,0.00044,30]
[312303128,1705766540327,-242.65390637,0.00044,30]
[312303129,1705766540358,-263.94522868,0.00044,30]
[312303130,1705766540386,-778.58332677,0.00044,30]
[312303131,1705766540412,-5000.0,0.00044,30]
[312303132,1705766540440,-1700.0,0.00044,30]
[312303133,1705766540467,-33659.66332198,0.00044,30]
[312303134,1705766540494,-239.82262971,0.00044,30]
[312303135,1705766540520,-200.0,0.00044,30]
[312303136,1705766540545,-270.79,0.00044109,40]
[312303137,1705766540570,-500.0,0.00044109,40]
[312303138,1705766540595,-299.42030584,0.00044109,40]
[312303139,1705766540621,-500.0,0.00044109,40]
[312303140,1705766540648,-500.0,0.00044109,40]
[312303141,1705766540673,-1000.0,0.00044109,40]
[312303142,1705766540698,-500.0,0.00044109,40]
[312303143,1705766540723,-526.82000592,0.00044109,40]
[312303144,1705766540748,-500.0,0.00044109,40]
[312303145,1705766540774,-1000.0,0.00044109,40]
[312303146,1705766540802,-500.0,0.00044109,40]
[312303147,1705766540826,-500.0,0.00044109,30]
[312303148,1705766540850,-414.18,0.00044109,40]
[312303149,1705766540874,-500.0,0.00044109,40]
[312303150,1705766540897,-306.47,0.00044109,40]
[312303151,1705766540921,-448.67891336,0.00044109,40]
[312303152,1705766540944,-500.0,0.00044109,40]
[312303153,1705766540968,-267.26,0.00044109,40]
[312303154,1705766540991,-500.0,0.00044109,40]
[312303155,1705766541014,-510.0,0.00044109,120]
[312303156,1705766541038,-500.0,0.00044109,40]
[312303157,1705766541061,-3163.48624261,0.00044109,40]
[312303158,1705766541084,-500.0,0.00044109,40]
[312303159,1705766541106,-250.0,0.00044109,40]
[312303160,1705766541129,-500.0,0.00044109,40]
[312303161,1705766541153,-645.26,0.00044109,40]
[312303162,1705766541176,-500.0,0.00044109,40]
[312303163,1705766541199,-500.0,0.00044109,40]
[312303164,1705766541223,-500.0,0.00044109,40]
[312303165,1705766541247,-500.0,0.00044109,40]
[312303166,1705766541271,-596.85135189,0.00044109,40]
[312303167,1705766541294,-500.0,0.00044109,40]
[312303168,1705766541318,-500.0,0.00044109,40]
[312303169,1705766541341,-500.0,0.00044109,40]
[312303170,1705766541365,-548.07198025,0.00044109,40]
[312303171,1705766541388,-500.0,0.00044109,40]
[312303172,1705766541412,-504.92949301,0.00044109,40]
[312303173,1705766541435,-500.0,0.00044109,40]
[312303174,1705766541459,-500.0,0.00044109,40]
[312303175,1705766541483,-536.42,0.00044109,40]
[312303176,1705766541508,-500.0,0.00044109,40]
[312303177,1705766541531,-500.0,0.00044109,40]
[312303178,1705766541555,-500.0,0.00044109,40]
[312303179,1705766541578,-500.0,0.00044109,30]
[312303180,1705766541603,-496.2,0.00044109,40]
[312303181,1705766541626,-500.0,0.00044109,40]
[312303182,1705766541650,-208.97,0.00044109,40]
[312303183,1705766541673,-500.0,0.00044109,40]
[312303184,1705766541698,-2646.67,0.00044109,40]
[312303185,1705766541722,-500.0,0.00044109,40]
[312303186,1705766541748,-500.0,0.00044109,40]
[312303187,1705766541772,-189.54,0.00044109,40]
[312303188,1705766541795,-500.0,0.00044109,40]
[312303189,1705766541819,-500.0,0.00044109,40]
[312303190,1705766541843,-500.0,0.00044109,40]
[312303191,1705766541867,-162.62698443,0.00044109,40]
[312303192,1705766541891,-500.0,0.00044109,40]
[312303193,1705766541915,-500.0,0.00044109,40]
[312303194,1705766541939,-500.0,0.00044109,40]
[312303195,1705766541962,-500.0,0.00044109,40]
[312303196,1705766541985,-1477.64,0.00044109,40]
[312303197,1705766542008,-500.0,0.00044109,40]
[312303198,1705766542032,-500.0,0.00044109,40]
[312303199,1705766542056,-500.0,0.00044109,40]
[312303200,1705766542079,-565.7,0.00044109,40]
[312303201,1705766542102,-477.3,0.00044109,40]